[Event "15e Open International de Quenza"]
[Site "Quenza"]
[Date "2026.07.05"]
[Round "2.1"]
[White "GERONIMI, Jean-Thomas"]
[Black "KOELLE, Tobias"]
[Result "0-1"]
[TimeControl "5min+3s"]
[WhiteTitle "-"]
[BlackTitle "IM"]
[WhiteFideId "-"]
[BlackFideId "-"]
[WhiteElo "1972"]
[BlackElo "2613"]

1. e4 {[%clk 00:05:03]} c5 {[%clk 00:05:03]} 2. Nf3 {[%clk 00:05:03]} d6 {[%clk
00:05:03]} 3. d4 {[%clk 00:05:03]} {[%emt 00:00:01]} cxd4 {[%clk 00:05:03]} 4.
Nxd4 {[%clk 00:05:03]} Nf6 {[%clk 00:05:03]} {[%emt 00:00:01]} 5. Nc3 {[%clk
00:05:03]} {[%emt 00:00:01]} a6 {[%clk 00:05:03]} 6. f3 {[%clk 00:05:03]}
{[%emt 00:00:01]} e5 {[%clk 00:05:03]} 7. Nb3 {[%clk 00:05:03]} Be6 {[%clk
00:05:03]} 8. Be3 {[%clk 00:05:03]} {[%emt 00:00:01]} Be7 {[%clk 00:05:03]} 9.
Qd2 {[%clk 00:05:03]} {[%emt 00:00:02]} O-O {[%clk 00:05:03]} {[%emt 00:00:02]}
10. O-O-O {[%clk 00:05:03]} {[%emt 00:00:03]} Nbd7 {[%clk 00:05:03]} {[%emt
00:00:01]} 11. Nd5 {[%clk 00:05:03]} {[%emt 00:00:02]} Nxd5 {[%clk 00:05:01]}
{[%emt 00:00:05]} 12. exd5 {[%clk 00:05:03]} {[%emt 00:00:02]} Bf5 {[%clk
00:05:01]} 13. Kb1 {[%clk 00:05:01]} {[%emt 00:00:06]} b5 {[%clk 00:05:00]}
{[%emt 00:00:05]} 14. Bd3 {[%clk 00:05:01]} {[%emt 00:00:02]} Bxd3 {[%clk
00:05:00]} {[%emt 00:00:02]} 15. Qxd3 {[%clk 00:05:01]} {[%emt 00:00:01]} Qc7
{[%clk 00:04:42]} {[%emt 00:00:20]} 16. g4 {[%clk 00:04:43]} {[%emt 00:00:22]}
Rfb8 {[%clk 00:04:27]} {[%emt 00:00:18]} 17. h4 {[%clk 00:04:28]} {[%emt
00:00:18]} a5 {[%clk 00:04:27]} {[%emt 00:00:01]} 18. g5 {[%clk 00:04:21]}
{[%emt 00:00:09]} b4 {[%clk 00:04:03]} {[%emt 00:00:27]} 19. h5 {[%clk
00:04:13]} {[%emt 00:00:11]} a4 {[%clk 00:04:03]} {[%emt 00:00:01]} 20. Nd2
{[%clk 00:04:13]} Bf8 {[%clk 00:02:39]} {[%emt 00:01:26]} 21. g6 {[%clk
00:04:09]} {[%emt 00:00:08]} Nf6 {[%clk 00:02:33]} {[%emt 00:00:09]} 22. Bg5
{[%clk 00:03:55]} {[%emt 00:00:17]} b3 {[%clk 00:02:33]} {[%emt 00:00:01]} 23.
cxb3 {[%clk 00:03:36]} {[%emt 00:00:23]} axb3 {[%clk 00:02:33]} 24. a3 {[%clk
00:03:36]} Nxd5 {[%clk 00:02:12]} {[%emt 00:00:24]} 25. Ne4 {[%clk 00:03:11]}
{[%emt 00:00:28]} Qc2+ {[%clk 00:01:16]} {[%emt 00:00:59]} 26. Qxc2 {[%clk
00:03:11]} {[%emt 00:00:03]} bxc2+ {[%clk 00:01:16]} {[%emt 00:00:01]} 27. Kxc2
{[%clk 00:03:11]} {[%emt 00:00:02]} Nb6 28. gxf7+ {[%clk 00:03:08]} {[%emt
00:00:05]} Kxf7 {[%clk 00:01:16]} {[%emt 00:00:02]} 29. Nxd6+ {[%clk 00:03:03]}
{[%emt 00:00:08]} Ke6 {[%clk 00:01:15]} {[%emt 00:00:04]} 30. Ne4 {[%clk
00:02:44]} {[%emt 00:00:22]} Nc4 {[%clk 00:01:15]} {[%emt 00:00:01]} 31. Bc1
{[%clk 00:02:38]} {[%emt 00:00:08]} Rc8 {[%clk 00:01:12]} {[%emt 00:00:07]} 32.
Kd3 {[%clk 00:02:33]} {[%emt 00:00:08]} Rab8 {[%clk 00:01:06]} {[%emt
00:00:09]} 33. b4 {[%clk 00:02:31]} {[%emt 00:00:06]} Ra8 {[%clk 00:01:06]} 34.
Ke2 {[%clk 00:02:18]} {[%emt 00:00:15]} Nxa3 {[%clk 00:01:06]} {[%emt
00:00:02]} 35. Bxa3 {[%clk 00:02:03]} {[%emt 00:00:18]} Rxa3 {[%emt 00:00:23]}
36. Nc5+ {[%clk 00:01:44]} Bxc5 {[%clk 00:01:06]} {[%emt 00:00:02]} 37. bxc5
{[%clk 00:01:44]} Rxc5 {[%clk 00:01:06]} {[%emt 00:00:01]} 38. Rd3 {[%clk
00:01:39]} {[%emt 00:00:07]} Rc2+ {[%clk 00:00:57]} {[%emt 00:00:12]} 39. Ke3
{[%clk 00:01:21]} {[%emt 00:00:21]} Raa2 {[%clk 00:00:57]} 40. Rb3 {[%clk
00:01:21]} Re2+ {[%clk 00:00:57]} {[%emt 00:00:01]} 41. Kd3 {[%clk 00:01:21]}
Rad2+ {[%clk 00:00:57]} 42. Kc3 {[%clk 00:01:21]} {[%emt 00:00:01]} Rd7 {[%clk
00:00:57]} {[%emt 00:00:02]} 43. Rb6+ {[%clk 00:01:15]} {[%emt 00:00:09]} Kf5
{[%clk 00:00:57]} 44. Rf1 {[%clk 00:00:46]} {[%emt 00:00:32]} Re3+ {[%clk
00:00:57]} {[%emt 00:00:02]} 45. Kc4 {[%clk 00:00:46]} {[%emt 00:00:03]} Rd4+
{[%clk 00:00:57]} 46. Kc5 {[%clk 00:00:44]} {[%emt 00:00:05]} Rc3+ {[%clk
00:00:57]} {[%emt 00:00:01]} 47. Kb5 {[%clk 00:00:44]} {[%emt 00:00:01]} Rb3+
{[%clk 00:00:57]} {[%emt 00:00:01]} 48. Ka5 {[%clk 00:00:44]} {[%emt 00:00:01]}
Rxb6 {[%clk 00:00:57]} {[%emt 00:00:03]} 49. Kxb6 {[%clk 00:00:44]} {[%emt
00:00:01]} Rh4 {[%clk 00:00:57]} {[%emt 00:00:01]} 50. Rg1 {[%clk 00:00:44]}
{[%emt 00:00:02]} Kf6 {[%clk 00:00:57]} 51. Kc5 {[%clk 00:00:43]} {[%emt
00:00:04]} Rxh5 {[%clk 00:00:57]} {[%emt 00:00:01]} 52. Kd5 {[%clk 00:00:43]}
Rh4 {[%clk 00:00:57]} {[%emt 00:00:01]} 53. Ra1 {[%clk 00:00:43]} {[%emt
00:00:03]} Rd4+ {[%clk 00:00:54]} {[%emt 00:00:06]} 54. Kc5 {[%clk 00:00:43]}
h5 {[%clk 00:00:54]} {[%emt 00:00:02]} 55. Ra6+ {[%clk 00:00:35]} {[%emt
00:00:12]} Kf5 {[%clk 00:00:54]} {[%emt 00:00:01]} 56. Ra7 {[%clk 00:00:35]}
{[%emt 00:00:02]} g5 {[%clk 00:00:54]} {[%emt 00:00:02]} 57. Rf7 {[%clk
00:00:35]} {[%emt 00:00:01]} Kg6 {[%clk 00:00:54]} {[%emt 00:00:02]} 58. Re7
{[%clk 00:00:35]} Kf6 {[%clk 00:00:54]} 59. Rh7 {[%clk 00:00:35]} {[%emt
00:00:02]} h4 {[%clk 00:00:54]} {[%emt 00:00:01]} 60. Rh6+ {[%clk 00:00:35]}
Kf5 {[%clk 00:00:54]} 61. Rh8 {[%emt 00:00:11]} Rf4 {[%clk 00:00:51]} 62. Kd5
{[%clk 00:00:28]} {[%emt 00:00:08]} Rxf3 {[%clk 00:00:51]} {[%emt 00:00:02]} 63.
Rf8 {[%clk 00:00:26]} {[%emt 00:00:06]} Kg4 {[%clk 00:00:51]} 64. Ra8 {[%clk
00:00:26]} {[%emt 00:00:02]} h3 {[%clk 00:00:50]} {[%emt 00:00:03]} 0-1

[Event "15e Open International de Quenza"]
[Site "Quenza"]
[Date "2026.07.05"]
[Round "2.7"]
[White "SABIANI, Chjara"]
[Black "MAZE, Sebastien"]
[Result "0-1"]
[TimeControl "5min+3s"]
[WhiteTitle "-"]
[BlackTitle "GM"]
[WhiteFideId "-"]
[BlackFideId "-"]
[WhiteElo "1881"]
[BlackElo "2455"]

1. d4 {[%clk 00:05:03]} Nf6 {[%clk 00:05:03]} {[%emt 00:00:02]} 2. c4 {[%clk
00:05:03]} g6 {[%clk 00:05:03]} {[%emt 00:00:03]} 3. Nc3 {[%clk 00:05:03]} Bg7
{[%clk 00:05:03]} {[%emt 00:00:02]} 4. e4 {[%clk 00:05:03]} d6 {[%clk
00:05:03]} 5. Be2 {[%clk 00:04:49]} {[%emt 00:00:19]} Nbd7 {[%clk 00:05:00]}
{[%emt 00:00:06]} 6. Bg5 {[%clk 00:04:47]} {[%emt 00:00:04]} e5 {[%clk
00:04:56]} {[%emt 00:00:08]} 7. d5 {[%clk 00:04:47]} {[%emt 00:00:04]} a5
{[%clk 00:04:56]} {[%emt 00:00:03]} 8. h4 {[%clk 00:04:38]} {[%emt 00:00:12]}
h6 {[%clk 00:04:52]} {[%emt 00:00:07]} 9. Be3 {[%clk 00:04:38]} {[%emt
00:00:02]} Nc5 {[%clk 00:04:52]} {[%emt 00:00:02]} 10. f3 {[%clk 00:04:29]}
{[%emt 00:00:11]} Nh5 {[%clk 00:04:51]} {[%emt 00:00:03]} 11. Kf2 {[%clk
00:04:05]} {[%emt 00:00:27]} O-O {[%clk 00:04:43]} {[%emt 00:00:12]} 12. g4
{[%clk 00:03:55]} {[%emt 00:00:14]} Nf4 {[%clk 00:04:43]} {[%emt 00:00:01]} 13.
Bxf4 {[%clk 00:03:50]} {[%emt 00:00:08]} exf4 {[%clk 00:04:43]} {[%emt
00:00:01]} 14. Qd2 {[%clk 00:03:34]} {[%emt 00:00:20]} Be5 {[%clk 00:04:41]}
{[%emt 00:00:05]} 15. Nh3 Qxh4+ {[%clk 00:04:41]} 16. Kf1 {[%clk 00:03:16]}
{[%emt 00:00:20]} Qf6 {[%clk 00:04:35]} {[%emt 00:00:09]} 17. Nb5 {[%clk
00:02:57]} {[%emt 00:00:22]} c6 {[%clk 00:04:31]} {[%emt 00:00:07]} 18. Nc3
{[%clk 00:02:50]} {[%emt 00:00:11]} Kg7 {[%clk 00:04:26]} {[%emt 00:00:08]} 19.
Kg2 {[%clk 00:02:39]} {[%emt 00:00:13]} Rh8 {[%clk 00:04:26]} {[%emt 00:00:03]}
20. Rag1 {[%clk 00:02:33]} {[%emt 00:00:08]} Bd7 {[%clk 00:04:06]} {[%emt
00:00:24]} 21. Kf1 {[%clk 00:02:27]} {[%emt 00:00:09]} a4 {[%clk 00:04:03]}
{[%emt 00:00:06]} 22. Nd1 {[%clk 00:02:14]} {[%emt 00:00:16]} Rab8 {[%clk
00:03:25]} {[%emt 00:00:41]} 23. Nhf2 {[%clk 00:02:12]} {[%emt 00:00:04]} b5
{[%clk 00:03:07]} {[%emt 00:00:21]} 24. cxb5 {[%clk 00:02:06]} {[%emt
00:00:10]} cxb5 {[%clk 00:03:00]} {[%emt 00:00:10]} 25. Nd3 {[%clk 00:02:03]}
{[%emt 00:00:06]} Nxd3 {[%clk 00:02:58]} {[%emt 00:00:05]} 26. Bxd3 {[%clk
00:02:03]} {[%emt 00:00:03]} b4 {[%clk 00:02:46]} {[%emt 00:00:16]} 27. Rg2
{[%clk 00:01:53]} {[%emt 00:00:13]} b3 {[%clk 00:02:44]} {[%emt 00:00:05]} 28.
a3 {[%clk 00:01:46]} {[%emt 00:00:10]} Rbc8 {[%clk 00:02:42]} {[%emt 00:00:04]}
29. Qb4 {[%clk 00:01:14]} {[%emt 00:00:35]} Rc1 {[%clk 00:02:39]} {[%emt
00:00:06]} 30. Qd2 {[%clk 00:00:56]} {[%emt 00:00:21]} Bxb2 {[%clk 00:02:13]}
{[%emt 00:00:29]} 31. Ke2 {[%clk 00:00:19]} {[%emt 00:00:40]} Bxa3 {[%clk
00:02:13]} {[%emt 00:00:02]} 32. Nf2 {[%clk 00:00:12]} {[%emt 00:00:10]} b2
{[%clk 00:02:08]} {[%emt 00:00:08]} 33. Bb1 {[%clk 00:00:11]} {[%emt 00:00:04]}
Rxh1 {[%clk 00:02:04]} {[%emt 00:00:07]} 34. Nxh1 {[%clk 00:00:11]} Bb5+ {[%clk
00:02:04]} {[%emt 00:00:02]} 35. Kd1 {[%clk 00:00:11]} {[%emt 00:00:03]} Bc5
{[%clk 00:02:00]} {[%emt 00:00:07]} 36. Qxb2 {[%clk 00:00:09]} {[%emt
00:00:06]} Qxb2 {[%clk 00:01:53]} {[%emt 00:00:10]} 37. Rxb2 {[%clk 00:00:09]}
Bc4 {[%clk 00:01:53]} {[%emt 00:00:01]} 38. Ba2 {[%clk 00:00:09]} {[%emt
00:00:03]} a3 {[%clk 00:01:51]} {[%emt 00:00:04]} 39. Rc2 {[%clk 00:00:09]}
{[%emt 00:00:02]} Bxa2 {[%clk 00:01:50]} {[%emt 00:00:05]} 40. Rxa2 {[%clk
00:00:09]} h5 {[%clk 00:01:50]} 41. Nf2 {[%clk 00:00:04]} {[%emt 00:00:09]}
hxg4 {[%clk 00:01:40]} {[%emt 00:00:14]} 42. fxg4 {[%clk 00:00:04]} {[%emt
00:00:02]} Rh2 {[%clk 00:01:38]} {[%emt 00:00:05]} 43. Ke1 {[%clk 00:00:04]}
{[%emt 00:00:02]} Rxf2 {[%clk 00:01:38]} {[%emt 00:00:02]} 0-1

[Event "15e Open International de Quenza"]
[Site "Quenza"]
[Date "2026.07.05"]
[Round "2.13"]
[White "APPIETTO, Andria"]
[Black "TREGUBOV, Pavel V."]
[Result "0-1"]
[TimeControl "5min+3s"]
[WhiteTitle "-"]
[BlackTitle "GM"]
[WhiteFideId "-"]
[BlackFideId "-"]
[WhiteElo "1815"]
[BlackElo "2391"]

1. d4 {[%clk 00:05:03]} {[%emt 00:05:05]} Nf6 {[%clk 00:05:03]} {[%emt
00:00:04]} 2. Nf3 {[%clk 00:05:03]} e6 {[%clk 00:05:03]} {[%emt 00:00:01]} 3.
Bg5 {[%clk 00:05:03]} c5 {[%clk 00:05:03]} {[%emt 00:00:02]} 4. e3 {[%clk
00:05:03]} {[%emt 00:00:04]} d5 {[%clk 00:05:00]} {[%emt 00:00:06]} 5. c3
{[%clk 00:05:03]} {[%emt 00:00:03]} Nc6 {[%clk 00:05:00]} {[%emt 00:00:02]} 6.
Bd3 {[%clk 00:05:03]} {[%emt 00:00:02]} Be7 {[%clk 00:04:57]} {[%emt 00:00:06]}
7. Nbd2 {[%clk 00:05:03]} {[%emt 00:00:01]} O-O {[%clk 00:04:29]} {[%emt
00:00:31]} 8. O-O {[%clk 00:05:03]} {[%emt 00:00:02]} Qc7 {[%clk 00:04:28]}
{[%emt 00:00:04]} 9. Qe2 {[%clk 00:04:10]} {[%emt 00:00:57]} e5 {[%clk
00:04:23]} {[%emt 00:00:07]} 10. dxe5 {[%clk 00:04:01]} {[%emt 00:00:12]} Nxe5
{[%clk 00:04:23]} {[%emt 00:00:01]} 11. Nxe5 {[%clk 00:04:01]} {[%emt
00:00:03]} Qxe5 {[%clk 00:04:23]} {[%emt 00:00:01]} 12. Nf3 {[%clk 00:04:01]}
Qc7 {[%clk 00:04:15]} {[%emt 00:00:11]} 13. c4 {[%clk 00:03:57]} {[%emt
00:00:07]} dxc4 {[%clk 00:04:06]} {[%emt 00:00:12]} 14. Bxc4 {[%clk 00:03:57]}
{[%emt 00:00:02]} Bg4 {[%clk 00:04:00]} {[%emt 00:00:08]} 15. h3 {[%clk
00:03:34]} {[%emt 00:00:26]} Bh5 {[%clk 00:04:00]} {[%emt 00:00:02]} 16. Rfd1
{[%clk 00:02:58]} {[%emt 00:00:39]} Rad8 {[%clk 00:03:53]} {[%emt 00:00:10]} 17.
g4 {[%clk 00:02:44]} {[%emt 00:00:17]} Bg6 {[%clk 00:03:53]} {[%emt 00:00:02]}
18. Rac1 {[%clk 00:02:34]} {[%emt 00:00:14]} Ne4 {[%clk 00:03:34]} {[%emt
00:00:22]} 19. Bxe7 {[%clk 00:02:34]} {[%emt 00:00:02]} Qxe7 {[%clk 00:03:34]}
{[%emt 00:00:01]} 20. Rd5 {[%clk 00:02:08]} {[%emt 00:00:28]} Rxd5 {[%clk
00:02:58]} {[%emt 00:00:39]} 21. Bxd5 {[%clk 00:02:08]} {[%emt 00:00:01]} h5
{[%clk 00:02:51]} {[%emt 00:00:11]} 22. Bxe4 {[%clk 00:01:44]} {[%emt
00:00:28]} Bxe4 {[%clk 00:02:42]} {[%emt 00:00:11]} 23. Nd2 {[%clk 00:01:40]}
{[%emt 00:00:07]} Bc6 {[%clk 00:02:19]} {[%emt 00:00:26]} 24. gxh5 {[%clk
00:01:36]} {[%emt 00:00:08]} Rd8 {[%clk 00:02:18]} {[%emt 00:00:05]} 25. Nf1
{[%clk 00:01:36]} {[%emt 00:00:02]} Qe4 {[%clk 00:02:00]} {[%emt 00:00:21]} 26.
f3 {[%clk 00:01:18]} {[%emt 00:00:21]} Qf5 {[%clk 00:01:55]} {[%emt 00:00:08]}
27. e4 {[%clk 00:00:52]} {[%emt 00:00:29]} Qg5+ {[%clk 00:01:45]} {[%emt
00:00:13]} 0-1

[Event "15e Open International de Quenza"]
[Site "Quenza"]
[Date "2026.07.05"]
[Round "2.11"]
[White "LOVICHI, Raphael"]
[Black "RELANGE, Eloi"]
[Result "0-1"]
[TimeControl "5min+3s"]
[WhiteTitle "-"]
[BlackTitle "GM"]
[WhiteFideId "-"]
[BlackFideId "-"]
[WhiteElo "1824"]
[BlackElo "2416"]

1. e4 {[%clk 00:05:03]} {[%emt 00:00:01]} c5 {[%clk 00:05:03]} {[%emt
00:00:02]} 2. Nf3 {[%clk 00:05:03]} {[%emt 00:00:01]} Nc6 {[%clk 00:05:03]}
{[%emt 00:00:01]} 3. c3 {[%clk 00:05:02]} {[%emt 00:00:05]} Nf6 {[%clk
00:05:03]} {[%emt 00:00:02]} 4. e5 {[%clk 00:05:02]} {[%emt 00:00:01]} Nd5
{[%clk 00:05:03]} {[%emt 00:00:01]} 5. d4 {[%clk 00:05:02]} cxd4 {[%clk
00:05:03]} {[%emt 00:00:02]} 6. cxd4 {[%clk 00:05:02]} d6 {[%clk 00:05:03]}
{[%emt 00:00:04]} 7. Bc4 {[%clk 00:04:55]} {[%emt 00:00:10]} Nb6 {[%clk
00:05:03]} {[%emt 00:00:03]} 8. Bb5 {[%clk 00:04:53]} {[%emt 00:00:06]} dxe5
{[%clk 00:05:02]} {[%emt 00:00:04]} 9. Nxe5 {[%clk 00:04:53]} {[%emt 00:00:02]}
Bd7 {[%clk 00:05:02]} {[%emt 00:00:01]} 10. Nxd7 {[%clk 00:04:36]} {[%emt
00:00:20]} Qxd7 {[%clk 00:05:01]} {[%emt 00:00:04]} 11. Nc3 {[%clk 00:04:33]}
{[%emt 00:00:07]} Rd8 {[%clk 00:04:43]} {[%emt 00:00:20]} 12. Be3 {[%clk
00:04:12]} {[%emt 00:00:24]} a6 {[%clk 00:04:25]} {[%emt 00:00:21]} 13. Bxc6
{[%clk 00:03:52]} {[%emt 00:00:22]} Qxc6 {[%clk 00:04:25]} {[%emt 00:00:02]} 14.
O-O {[%clk 00:03:34]} {[%emt 00:00:22]} e6 {[%clk 00:04:25]} {[%emt 00:00:02]}
15. Qg4 {[%emt 00:00:12]} h5 {[%clk 00:04:23]} {[%emt 00:00:03]} 16. Qe4 {[%clk
00:02:59]} {[%emt 00:00:30]} Qxe4 {[%clk 00:04:12]} {[%emt 00:00:15]} 17. Nxe4
{[%clk 00:02:59]} {[%emt 00:00:01]} Nd5 {[%clk 00:04:00]} {[%emt 00:00:16]} 18.
Rac1 {[%clk 00:02:56]} {[%emt 00:00:06]} Bd6 {[%clk 00:03:56]} {[%emt
00:00:06]} 19. Nc5 {[%clk 00:02:40]} {[%emt 00:00:19]} Bxc5 {[%clk 00:03:29]}
{[%emt 00:00:30]} 20. Rxc5 {[%clk 00:02:40]} {[%emt 00:00:02]} Kd7 {[%clk
00:03:18]} {[%emt 00:00:13]} 21. Rfc1 {[%clk 00:02:29]} {[%emt 00:00:15]} Rc8
{[%clk 00:03:17]} {[%emt 00:00:04]} 22. Kf1 {[%clk 00:02:17]} {[%emt 00:00:14]}
b6 {[%clk 00:03:17]} {[%emt 00:00:03]} 23. Rxc8 {[%clk 00:02:05]} {[%emt
00:00:15]} Rxc8 {[%clk 00:03:17]} {[%emt 00:00:02]} 24. Rxc8 {[%clk 00:02:04]}
{[%emt 00:00:05]} Kxc8 {[%clk 00:03:17]} 25. Ke2 {[%clk 00:01:56]} {[%emt
00:00:11]} Kd7 {[%clk 00:03:17]} {[%emt 00:00:01]} 26. a3 {[%clk 00:01:55]}
{[%emt 00:00:04]} Kd6 {[%clk 00:03:10]} {[%emt 00:00:10]} 27. Kd3 {[%clk
00:01:48]} {[%emt 00:00:10]} b5 {[%clk 00:03:10]} {[%emt 00:00:02]} 28. Bd2
{[%clk 00:01:45]} {[%emt 00:00:06]} Nb6 {[%clk 00:03:08]} {[%emt 00:00:05]} 29.
Ke4 {[%clk 00:01:36]} {[%emt 00:00:12]} Nc4 {[%clk 00:02:36]} {[%emt 00:00:35]}
30. Bb4+ {[%clk 00:01:36]} {[%emt 00:00:01]} Kc6 {[%clk 00:02:36]} {[%emt
00:00:04]} 31. b3 {[%clk 00:01:26]} {[%emt 00:00:13]} Nb6 {[%clk 00:02:36]}
{[%emt 00:00:01]} 32. Bf8 {[%clk 00:01:25]} {[%emt 00:00:04]} g6 {[%clk
00:02:26]} {[%emt 00:00:13]} 33. Ke5 {[%clk 00:01:22]} {[%emt 00:00:06]} Nd7+
{[%clk 00:02:26]} {[%emt 00:00:01]} 0-1

[Event "15e Open International de Quenza"]
[Site "Quenza"]
[Date "2026.07.05"]
[Round "2.15"]
[White "FERRANDI, Bernard"]
[Black "RATIER-FONTANA, Matteo"]
[Result "0-1"]
[TimeControl "5min+3s"]
[WhiteTitle "-"]
[BlackTitle "-"]
[WhiteFideId "-"]
[BlackFideId "-"]
[WhiteElo "1796"]
[BlackElo "2368"]

1. e4 {[%clk 00:05:03]} {[%emt 00:00:01]} a6 {[%clk 00:05:03]} {[%emt
00:00:03]} 2. d4 {[%clk 00:05:03]} {[%emt 00:00:03]} g6 {[%clk 00:05:03]}
{[%emt 00:00:01]} 3. f4 {[%clk 00:05:01]} {[%emt 00:00:05]} c6 {[%clk
00:04:55]} {[%emt 00:00:12]} 4. Nf3 {[%clk 00:04:55]} {[%emt 00:00:09]} d5
{[%clk 00:04:55]} {[%emt 00:00:02]} 5. e5 {[%clk 00:04:55]} {[%emt 00:00:01]}
Bf5 {[%clk 00:04:28]} {[%emt 00:00:30]} 6. c4 {[%clk 00:04:45]} {[%emt
00:00:13]} h5 {[%clk 00:03:51]} {[%emt 00:00:40]} 7. Nc3 {[%clk 00:04:45]}
{[%emt 00:00:02]} Nh6 {[%clk 00:03:51]} {[%emt 00:00:04]} 8. Bd3 {[%clk
00:04:30]} {[%emt 00:00:17]} Bxd3 {[%clk 00:03:51]} {[%emt 00:00:02]} 9. Qxd3
{[%clk 00:04:30]} {[%emt 00:00:01]} e6 {[%clk 00:03:50]} {[%emt 00:00:04]} 10.
c5 {[%clk 00:04:25]} {[%emt 00:00:08]} Nf5 {[%clk 00:03:50]} {[%emt 00:00:03]}
11. Be3 {[%clk 00:04:02]} {[%emt 00:00:26]} Be7 {[%clk 00:03:49]} {[%emt
00:00:04]} 12. O-O-O {[%clk 00:03:59]} {[%emt 00:00:06]} b6 {[%clk 00:03:41]}
{[%emt 00:00:12]} 13. h3 {[%clk 00:03:47]} {[%emt 00:00:14]} bxc5 {[%clk
00:03:33]} {[%emt 00:00:12]} 14. dxc5 {[%clk 00:03:47]} {[%emt 00:00:02]} Nd7
{[%clk 00:03:33]} {[%emt 00:00:02]} 15. Na4 {[%clk 00:03:12]} {[%emt 00:00:38]}
Qa5 {[%clk 00:03:28]} {[%emt 00:00:07]} 16. Qc2 {[%clk 00:02:57]} {[%emt
00:00:17]} Nxe3 {[%clk 00:03:28]} {[%emt 00:00:02]} 0-1

[ePGN "0.1;DGT LiveChess/2.2.11"]

[Event "15e Open International de Quenza"]
[Site "Quenza"]
[Date "2026.07.05"]
[Round "3.13"]
[White "DELADERRIERE, Helio"]
[Black "YANKELEVICH, Lev"]
[Result "0-1"]
[TimeControl "5min+3s"]
[WhiteTitle "-"]
[BlackTitle "GM"]
[WhiteFideId "-"]
[BlackFideId "-"]
[WhiteElo "2015"]
[BlackElo "2373"]

1. d4 {[%clk 00:05:03]} {[%emt 00:05:39]} Nf6 {[%clk 00:05:03]} {[%emt
00:00:03]} 2. c4 {[%clk 00:05:03]} {[%emt 00:00:02]} e6 {[%clk 00:05:03]} 3.
Nc3 {[%clk 00:05:03]} {[%emt 00:00:03]} Bb4 {[%clk 00:05:03]} 4. Nf3 {[%clk
00:04:59]} {[%emt 00:00:06]} Bxc3+ {[%clk 00:05:03]} {[%emt 00:00:02]} 5. bxc3
{[%clk 00:04:59]} d6 {[%clk 00:05:03]} 6. g3 {[%clk 00:04:56]} {[%emt
00:00:06]} b6 {[%clk 00:05:03]} {[%emt 00:00:03]} 7. Bg2 {[%clk 00:04:56]} Bb7
{[%clk 00:05:03]} 8. O-O {[%clk 00:04:56]} {[%emt 00:00:02]} O-O {[%clk
00:05:01]} {[%emt 00:00:05]} 9. Bg5 {[%clk 00:04:45]} {[%emt 00:00:14]} Nbd7
{[%clk 00:04:57]} {[%emt 00:00:07]} 10. Re1 {[%clk 00:04:19]} {[%emt 00:00:29]}
h6 {[%clk 00:04:56]} {[%emt 00:00:04]} 11. Bxf6 {[%clk 00:04:14]} {[%emt
00:00:08]} Nxf6 {[%clk 00:04:56]} {[%emt 00:00:01]} 12. Qc2 {[%clk 00:03:55]}
{[%emt 00:00:22]} Be4 {[%clk 00:04:56]} {[%emt 00:00:02]} 13. Qb3 {[%clk
00:03:44]} {[%emt 00:00:14]} Qd7 {[%clk 00:04:30]} {[%emt 00:00:29]} 14. Rad1
{[%clk 00:03:10]} {[%emt 00:00:37]} Qc6 {[%clk 00:04:29]} {[%emt 00:00:04]} 15.
Qb5 {[%clk 00:03:09]} {[%emt 00:00:04]} Qxb5 {[%clk 00:03:51]} {[%emt
00:00:41]} 16. cxb5 {[%clk 00:03:09]} a6 {[%clk 00:03:51]} 17. a4 {[%clk
00:02:58]} {[%emt 00:00:14]} axb5 {[%clk 00:03:39]} {[%emt 00:00:16]} 18. axb5
{[%clk 00:02:58]} Ra5 {[%clk 00:03:25]} {[%emt 00:00:17]} 19. c4 {[%clk
00:02:55]} {[%emt 00:00:06]} d5 {[%clk 00:03:25]} 20. Ra1 {[%clk 00:02:09]}
{[%emt 00:00:49]} Rfa8 {[%clk 00:02:36]} {[%emt 00:00:52]} 21. Rac1 {[%clk
00:01:59]} {[%emt 00:00:12]} dxc4 {[%clk 00:02:06]} {[%emt 00:00:33]} 22. Rxc4
{[%clk 00:01:57]} {[%emt 00:00:06]} Nd5 {[%clk 00:02:06]} 23. Nd2 {[%clk
00:01:52]} {[%emt 00:00:08]} Bxg2 {[%clk 00:01:53]} {[%emt 00:00:16]} 24. Kxg2
{[%clk 00:01:52]} {[%emt 00:00:03]} Rxb5 {[%clk 00:01:41]} {[%emt 00:00:14]} 25.
e4 {[%clk 00:01:52]} {[%emt 00:00:01]} Nf6 {[%clk 00:01:41]} 26. Rxc7 {[%clk
00:01:51]} {[%emt 00:00:04]} Rb2 {[%clk 00:01:41]} 27. Nc4 {[%clk 00:01:49]}
{[%emt 00:00:06]} Rb4 {[%clk 00:01:33]} {[%emt 00:00:11]} 28. Rc6 {[%clk
00:01:23]} {[%emt 00:00:29]} b5 {[%clk 00:01:15]} {[%emt 00:00:21]} 29. Nb6
{[%clk 00:01:15]} {[%emt 00:00:11]} Ra2 {[%clk 00:01:12]} {[%emt 00:00:05]} 30.
Kf3 {[%clk 00:00:24]} {[%emt 00:00:54]} Rb3+ {[%clk 00:01:09]} {[%emt
00:00:06]} 31. Re3 {[%clk 00:00:23]} {[%emt 00:00:05]} Rbb2 {[%clk 00:01:09]}
32. Kf4 {[%clk 00:00:21]} {[%emt 00:00:05]} Rxf2+ {[%clk 00:01:04]} {[%emt
00:00:08]} 33. Rf3 {[%clk 00:00:17]} {[%emt 00:00:07]} g5+ {[%clk 00:01:02]}
{[%emt 00:00:05]} 0-1